fUSD/lending_fUSD_20241227
["ID","MTS","AMOUNT","RATE_DAILY","PERIOD"]
[346839290,1735317031767,-353.14,9.219e-05,2]
[346839292,1735317031779,-209.44,9.229e-05,2]
[346839294,1735317031789,-1000.0,9.238e-05,2]
[346839295,1735317031798,-300.0,9.249e-05,2]
[346839297,1735317031808,-300.0,9.249e-05,2]
[346839299,1735317031817,-337.76,9.25e-05,2]
[346839301,1735317031827,-2289.1819,9.25e-05,2]
[346839304,1735317031838,-1007.93998328,9.25e-05,2]
[346839305,1735317031920,-39772.60640723,9.25e-05,2]
[346839306,1735317031932,-1000.09,9.25e-05,2]
[346839307,1735317031943,-614.74399974,9.25e-05,2]
[346839308,1735317031968,-474.27662681,9.25e-05,2]
[346839309,1735317032002,-4841.16108294,9.25e-05,2]
[346839310,1735317032012,-23900.0,9.255e-05,2]
[346839311,1735317032022,-2882.56,9.256e-05,2]
[346839312,1735317032031,-250.0,9.262e-05,2]
[346839313,1735317032040,-250.0,9.275e-05,2]
[346839314,1735317032049,-622.78,9.376e-05,2]
[346839315,1735317032058,-167.62,9.534e-05,2]
[346839316,1735317032067,-2856.66500055,0.0001,2]
[346839317,1735317032076,-203.59471565,0.0001,2]
[346839318,1735317032085,-151.48,0.00010095,2]
[346839319,1735317032095,-250.81,0.00010096,2]
[346839320,1735317032104,-253.3,0.00010097,2]
[346839321,1735317032113,-151.48,0.00010099,2]
[346839322,1735317032122,-151.0,0.000101,2]
[346839323,1735317032133,-151.48,0.00010102,2]
[346839324,1735317032142,-151.48,0.00010105,2]
[346839325,1735317032151,-151.48,0.00010109,2]
[346839326,1735317032161,-151.48,0.00010112,2]
[346839327,1735317032170,-151.48,0.00010115,2]
[346839328,1735317032178,-151.48,0.00010119,2]
[346839329,1735317032187,-151.48,0.00010122,2]
[346839330,1735317032196,-151.48,0.00010126,2]
[346839331,1735317032204,-151.48,0.00010129,2]
[346839332,1735317032213,-151.48,0.00010132,2]
[346839333,1735317032222,-151.48,0.00010136,2]
[346839334,1735317032231,-159.91,0.00010137,2]
[346839335,1735317032240,-170.92,0.00010137,2]
[346839336,1735317032255,-151.48,0.00010139,2]
[346839337,1735317032264,-151.48,0.00010142,2]
[346839338,1735317032273,-151.48,0.00010146,2]
[346839339,1735317032282,-420.0,0.00010174,2]
[346839340,1735317032291,-151.0,0.000102,2]
[346839341,1735317032300,-150.0,0.00010293,2]
[346839342,1735317032309,-151.0,0.000103,2]
[346839343,1735317032318,-1000.0,0.00010392,2]
[346839344,1735317032327,-550.76,0.00010431,2]
[346839345,1735317032336,-200.0,0.000105,3]
[346839346,1735317032345,-622.78,0.00010548,2]
[346839347,1735317032354,-107797.892,0.0001056,2]
[346839349,1735317032363,-3715.9383,0.0001056,2]
[346839351,1735317032372,-500.0,0.000106,3]
[346839352,1735317032381,-15405.0,0.00010652,2]
[346839354,1735317032390,-253.05,0.00010653,2]
[346839356,1735317032399,-247.09,0.00010653,2]
[346839358,1735317032408,-248.2,0.00010653,2]
[346839360,1735317032417,-250.73,0.00010653,2]
[346839362,1735317032426,-252.77,0.00010653,2]
[346839364,1735317032436,-249.96,0.00010653,2]
[346839366,1735317032445,-252.5,0.00010653,2]
[346839368,1735317032454,-500.0,0.00010657,2]
[346839370,1735317032463,-1843.54,0.00010658,2]
[346839372,1735317032472,-3414.62,0.00010658,2]
[346839374,1735317032481,-1661.68,0.00010658,2]
[346839376,1735317032490,-1842.96,0.00010658,2]
[346839378,1735317032501,-555.27,0.00010658,2]
[346839380,1735317032510,-2620.49,0.00010658,2]
[346839382,1735317032519,-681.4,0.00010658,2]
[346839384,1735317032528,-3021.16,0.00010658,2]
[346839386,1735317032537,-9227.29,0.00010658,2]
[346839388,1735317032546,-2298.02,0.00010658,2]
[346839390,1735317032555,-932.91,0.00010658,2]
[346839392,1735317032564,-2345.4,0.00010658,2]
[346839394,1735317032573,-2059.4,0.00010658,2]
[346839396,1735317032582,-3337.05,0.00010658,2]
[346839398,1735317032591,-1360.91,0.00010658,2]
[346839400,1735317032600,-500.0,0.00010658,2]
[346839401,1735317032609,-500.0,0.00010658,2]
[346839402,1735317032618,-1466.21,0.00010658,2]
[346839403,1735317032627,-920.29,0.00010658,2]
[346839404,1735317032636,-1272.47,0.00010658,2]
[346839405,1735317032645,-1126.46,0.00010658,2]
[346839406,1735317032654,-656.69,0.00010658,2]
[346839407,1735317032663,-2298.25,0.00010658,2]
[346839408,1735317032672,-1409.35076448,0.00010658,2]
[346839409,1735317032680,-3833.2354,0.00010659,2]
[346839410,1735317032689,-5828.3601,0.00010659,2]
[346839411,1735317032698,-5982.38265019,0.00010659,2]
[346839412,1735317033129,-3938.32584981,0.00010659,2]
[346839413,1735317033139,-442.14138981,0.00010659,2]
[346839414,1735317033151,-1625.64,0.00010659,2]
[346839415,1735317033163,-3570.61561019,0.00010659,2]
[346839416,1735317033173,-1131.16,0.00010659,2]
[346839417,1735317033182,-598.22438981,0.00010659,2]
[346839418,1735317033194,-573.80561019,0.00010659,2]
[346839419,1735317033204,-500.0,0.00010659,2]
[346839420,1735317033213,-655.28,0.00010659,2]
[346839421,1735317033222,-500.0,0.00010659,2]
[346839422,1735317033232,-500.0,0.00010659,2]
[346839423,1735317033242,-758.21,0.00010659,2]
[346839424,1735317033253,-500.0,0.00010659,2]
[346839425,1735317033262,-554.36,0.00010659,2]
[346839426,1735317033272,-95.39438981,0.00010659,2]
[346839427,1735317033284,-714.21561019,0.00010659,2]
[346839428,1735317033293,-1040.55,0.00010659,2]
[346839429,1735317033303,-710.19,0.00010659,2]
[346839430,1735317033312,-974.48,0.00010659,2]
[346839431,1735317033321,-500.0,0.00010659,2]
[346839432,1735317033331,-611.04,0.00010659,2]
[346839433,1735317033340,-543.19,0.00010659,2]
[346839434,1735317033349,-500.0,0.00010659,2]
[346839435,1735317033358,-500.0,0.00010659,2]
[346839436,1735317033368,-510.06,0.00010659,2]
[346839437,1735317033377,-500.0,0.00010659,2]
[346839438,1735317033386,-792.16,0.00010659,2]
[346839439,1735317033396,-1011.66,0.00010659,2]
[346839440,1735317033405,-500.0,0.00010659,2]
[346839441,1735317033415,-500.0,0.00010659,2]
[346839442,1735317033424,-500.0,0.00010659,2]
[346839443,1735317033433,-1102.15,0.00010659,2]
[346839444,1735317033444,-500.0,0.00010659,2]
[346839445,1735317033453,-500.0,0.00010659,2]
[346839446,1735317033462,-500.0,0.00010659,2]
[346839447,1735317033472,-500.0,0.00010659,2]
[346839448,1735317033481,-912.49,0.00010659,2]
[346839449,1735317033490,-500.0,0.00010659,2]
[346839450,1735317033501,-500.0,0.00010659,2]
[346839451,1735317033511,-1603.05,0.00010659,2]
[346839452,1735317033521,-532.65,0.00010659,2]
[346839453,1735317033530,-1248.53,0.00010659,2]
[346839454,1735317033539,-500.0,0.00010659,2]
[346839455,1735317033548,-690.06,0.00010659,2]
[346839456,1735317033557,-500.0,0.00010659,2]
[346839457,1735317033567,-688.19,0.00010659,2]
[346839458,1735317033576,-500.0,0.00010659,2]
[346839459,1735317033585,-1251.65,0.00010659,2]
[346839460,1735317033595,-500.0,0.00010659,2]
[346839461,1735317033605,-500.0,0.00010659,2]
[346839462,1735317033615,-500.0,0.00010659,2]
[346839463,1735317033625,-500.0,0.00010659,2]
[346839464,1735317033634,-712.32,0.00010659,2]
[346839465,1735317033645,-1147.81,0.00010659,2]
[346839466,1735317033655,-597.97,0.00010659,2]
[346839467,1735317033665,-623.59,0.00010659,2]
[346839468,1735317033675,-597.32,0.00010659,2]
[346839469,1735317033684,-947.53,0.00010659,2]
[346839470,1735317033694,-621.69,0.00010659,2]
[346839471,1735317033703,-500.0,0.00010659,2]
[346839472,1735317033712,-589.52,0.00010659,2]
[346839473,1735317033722,-1345.02,0.00010659,2]
[346839474,1735317033731,-879.4,0.00010659,2]
[346839475,1735317033740,-167.09790259,0.00010659,2]
[346839480,1735317037580,-158.0,9.152e-05,2]
[346839481,1735317037590,-158.0,0.00010296,2]
[346839482,1735317037598,-500.0,0.00010657,2]
[346839483,1735317037607,-500.0,0.00010657,2]
[346839484,1735317037616,-1084.03,0.00010657,2]
[346839485,1735317037625,-1766.72,0.00010658,2]
[346839486,1735317037633,-759.88449439,0.00010659,2]
[346839487,1735317037693,-359.46753516,0.00010659,2]
[346839488,1735317037704,-50.37006786,0.00010659,2]
[346839489,1735317037713,-500.0,0.00010659,2]
[346839490,1735317037722,-500.0,0.00010659,2]
[346839491,1735317037731,-500.0,0.00010659,2]
[346839492,1735317037740,-1313.23,0.00010659,2]
[346839493,1735317037749,-728.47740993,0.00010659,2]
[346839494,1735317037769,-281.97259007,0.00010659,2]
[346839495,1735317037781,-373.68240993,0.00010659,2]
[346839496,1735317037807,-126.31759007,0.00010659,2]
[346839497,1735317037817,-299.31795532,0.00010659,2]
[346839498,1735317037882,-848.26204468,0.00010659,2]
[346839499,1735317037891,-316.31133847,0.00010659,2]
[346839517,1735317039632,-500.0,0.00010657,2]
[346839518,1735317039642,-642.40866153,0.00010659,2]
[346839519,1735317039652,-751.45,0.00010659,2]
[346839520,1735317039661,-1818.38,0.00010659,2]
[346839521,1735317039670,-1436.05087737,0.00010659,2]
[346839522,1735317039689,-2252.91912263,0.00010659,2]
[346839523,1735317039698,-2503.22,0.00010659,2]
[346839524,1735317039708,-1629.34,0.00010659,2]
[346839525,1735317039717,-996.56,0.00010659,2]
[346839526,1735317039727,-655.41,0.00010659,2]
[346839527,1735317039736,-1092.45,0.00010659,2]
[346839528,1735317039745,-2438.26,0.00010659,2]
[346839529,1735317039756,-553.85,0.00010659,2]
[346839530,1735317039765,-500.0,0.00010659,2]
[346839531,1735317039775,-620.9,0.00010659,2]
[346839532,1735317039784,-11405.30102861,0.00010659,2]
[346839533,1735317039796,-11175.054306,0.00010659,2]
[346839534,1735317039819,-671.07000009,0.00010659,2]
[346839535,1735317039832,-5205.6746653,0.00010659,2]
[346839536,1735317039841,-817.32,0.00010659,2]
[346839537,1735317039851,-7217.12,0.00010659,2]
[346839538,1735317039860,-1051.42,0.00010659,2]
[346839539,1735317039870,-5455.59,0.00010659,2]
[346839540,1735317039880,-1127.01,0.00010659,2]
[346839541,1735317039891,-952.22,0.00010659,2]
[346839542,1735317039901,-1653.46,0.00010659,2]
[346839543,1735317039910,-1194.23,0.00010659,2]
[346839544,1735317039919,-1097.31,0.00010659,2]
[346839545,1735317039930,-500.0,0.00010659,2]
[346839546,1735317039940,-942.18,0.00010659,2]
[346839547,1735317039950,-4252.03,0.00010659,2]
[346839548,1735317039962,-3186.53,0.00010659,2]
[346839549,1735317039971,-974.59,0.00010659,2]
[346839550,1735317039981,-500.0,0.00010659,2]
[346839551,1735317039990,-1112.11,0.00010659,2]
[346839552,1735317040000,-2788.06,0.00010659,2]
[346839553,1735317040010,-1385.55,0.00010659,2]
[346839554,1735317040020,-5038.05,0.00010659,2]
[346839555,1735317040029,-1518.08,0.00010659,2]
[346839556,1735317040039,-1594.05,0.00010659,2]
[346839557,1735317040048,-985.29,0.00010659,2]
[346839558,1735317040058,-582.11,0.00010659,2]
[346839560,1735317040067,-1379.95,0.00010659,2]
[346839561,1735317040076,-1185.62,0.00010659,2]
[346839563,1735317040086,-2139.63,0.00010659,2]
[346839564,1735317040095,-500.0,0.00010659,2]
[346839565,1735317040104,-570.36,0.00010659,2]
[346839566,1735317040114,-1205.91,0.00010659,2]
[346839567,1735317040123,-189.19764672,0.00010659,2]
[346839568,1735317040135,-534.0425677,0.00010659,2]
[346839569,1735317040147,-1097.18978558,0.00010659,2]
[346839570,1735317040157,-775.69021442,0.00010659,2]
[346839571,1735317040168,-89.49978558,0.00010659,2]
[346839572,1735317040178,-287.65641431,0.00010659,2]
[346839573,1735317040189,-543.11358569,0.00010659,2]
[346839574,1735317040199,-638.26,0.00010659,2]
[346839575,1735317040208,-1032.09,0.00010659,2]
[346839576,1735317040218,-2483.46,0.00010659,2]
[346839577,1735317040227,-1328.43,0.00010659,2]
[346839578,1735317040237,-1820.15,0.00010659,2]
[346839579,1735317040246,-1279.89,0.00010659,2]
[346839580,1735317040258,-764.22,0.00010659,2]
[346839581,1735317040267,-1000.0,0.0001066,2]
[346839582,1735317040279,-15764.67696095,0.0001066,2]
[346839583,1735317040290,-826.31590867,0.0001066,2]
[346839584,1735317040301,-870.506235,0.0001066,2]
[346839585,1735317040313,-3674.76568076,0.0001066,2]
[346839586,1735317040324,-669.0756367,0.0001066,2]
[346839587,1735317040347,-831.81499999,0.0001066,2]
[346839588,1735317040412,-298.2975,0.0001066,2]
[346839589,1735317040482,-2028.15360176,0.0001066,2]
[346839590,1735317040494,-9188.84639824,0.0001066,2]
[346839591,1735317040508,-608.11212382,0.0001066,2]
[346839592,1735317040519,-446.8668996,0.0001066,2]
[346839618,1735317042736,-627.98,0.00010657,2]
[346839619,1735317042746,-551.58290355,0.0001066,2]
[346839620,1735317042794,-2274.90198533,0.0001066,2]
[346839621,1735317042805,-494.14,0.0001066,2]
[346839622,1735317042816,-317.25,0.0001066,2]
[346839623,1735317042851,-329.49060594,0.0001066,2]
[346839624,1735317042861,-850.0830851,0.0001066,2]
[346839625,1735317042908,-746.93877577,0.0001066,2]
[346839626,1735317042919,-26701.17349882,0.0001066,2]
[346839627,1735317042929,-6535.84669847,0.0001066,2]
[346839628,1735317042940,-9319.85710153,0.0001066,2]
[346839629,1735317042949,-500.0,0.0001066,2]
[346839630,1735317042959,-6456.0733,0.0001066,2]
[346839631,1735317042968,-8131.52497543,0.0001066,2]
[346839632,1735317042979,-6433.90948603,0.0001066,2]
[346839834,1735317045664,-500.0,0.00010657,2]
[346839835,1735317045673,-7871.60072067,0.00010658,2]
[346839836,1735317045722,-3015.40927933,0.00010658,2]
[346839837,1735317045731,-933.3,0.00010658,2]
[346839838,1735317045741,-21764.20131749,0.0001066,2]
[346839839,1735317045752,-10083.21762105,0.0001066,2]
[346839840,1735317045762,-37051.9896,0.0001066,2]
[346839841,1735317045771,-700.0,0.000107,3]
[346839842,1735317045780,-1409.35076448,0.00010746,2]
[346839843,1735317045790,-8478.38853727,0.00010753,2]
[346839844,1735317045801,-1325.2359382,0.00010753,2]
[346839845,1735317045812,-14136.03051409,0.00010753,2]
[346839846,1735317045823,-761.48648114,0.00010753,2]
[346839847,1735317045832,-1720.09338993,0.00010753,2]
[346839848,1735317045843,-6102.85234127,0.00010753,2]
[346839849,1735317045853,-1563.6105698,0.00010753,2]
[346839850,1735317045862,-261.0928715,0.00010753,2]
[346839851,1735317045871,-500.0,0.00010757,2]
[346839852,1735317045881,-450.27579051,0.00010757,2]
[346839853,1735317045893,-500.0,0.00010758,2]
[346839854,1735317045902,-500.0,0.00010758,2]
[346839855,1735317045911,-500.0,0.00010758,2]
[346839856,1735317045920,-561.87,0.00010758,2]
[346839857,1735317045930,-500.0,0.00010758,2]
[346839858,1735317045940,-539.46,0.00010758,2]
[346839859,1735317045949,-500.0,0.00010758,2]
[346839860,1735317045959,-500.0,0.00010758,2]
[346839861,1735317045969,-510.25,0.00010758,2]
[346839862,1735317045978,-500.0,0.00010758,2]
[346839863,1735317045988,-500.0,0.00010758,2]
[346839864,1735317045997,-500.0,0.00010758,2]
[346839865,1735317046006,-381.14407901,0.00010758,2]
[346839866,1735317046016,-500.0,0.00010758,2]
[346839867,1735317046025,-672.55,0.00010758,2]
[346839868,1735317046035,-500.0,0.00010758,2]
[346839869,1735317046044,-500.0,0.00010758,2]
[346839870,1735317046053,-500.0,0.00010758,2]
[346839871,1735317046062,-500.0,0.00010758,2]
[346839872,1735317046072,-500.0,0.00010758,2]
[346839873,1735317046081,-500.0,0.00010758,2]
[346839874,1735317046091,-500.0,0.00010758,2]
[346839875,1735317046100,-500.0,0.00010758,2]
[346839876,1735317046109,-500.0,0.00010758,2]
[346839877,1735317046119,-500.0,0.00010758,2]
[346839878,1735317046128,-221.97018071,0.00010758,2]
[346839879,1735317046137,-182.7835632,0.00010758,2]
[346839880,1735317046162,-317.2164368,0.00010758,2]
[346839881,1735317046171,-500.0,0.00010758,2]
[346839882,1735317046180,-500.0,0.00010758,2]
[346839883,1735317046189,-500.0,0.00010758,2]
[346839884,1735317046199,-500.0,0.00010758,2]
[346839885,1735317046208,-400.18042308,0.00010758,2]
[346839886,1735317046219,-185.09957692,0.00010758,2]
[346839887,1735317046228,-500.0,0.00010758,2]
[346839888,1735317046238,-530.05,0.00010758,2]
[346839889,1735317046247,-165.76815251,0.00010758,2]
[346839890,1735317046256,-500.0,0.00010758,2]
[346839891,1735317046265,-500.0,0.00010758,2]
[346839892,1735317046275,-500.0,0.00010758,2]
[346839893,1735317046284,-590.13,0.00010758,2]
[346839894,1735317046293,-130.5083624,0.00010758,2]
[346839895,1735317046311,-369.4916376,0.00010758,2]
[346839896,1735317046321,-530.19138025,0.00010758,2]
[346839897,1735317046330,-500.0,0.00010758,2]
[346839898,1735317046339,-500.0,0.00010758,2]
[346839899,1735317046348,-627.24,0.00010758,2]
[346839900,1735317046357,-493.51510356,0.00010758,2]
[346839901,1735317046369,-6.48489644,0.00010758,2]
[346839902,1735317046378,-500.0,0.00010758,2]
[346839903,1735317046387,-25.29011422,0.00010758,2]
[346839904,1735317046398,-474.70988578,0.00010758,2]
[346839905,1735317046407,-500.0,0.00010758,2]
[346839906,1735317046417,-500.0,0.00010758,2]
[346839907,1735317046426,-500.0,0.00010758,2]
[346839908,1735317046435,-679.53197315,0.00010758,2]
[346839909,1735317046446,-95.08802685,0.00010758,2]
[346839910,1735317046455,-500.0,0.00010758,2]
[346839911,1735317046464,-549.26,0.00010758,2]
[346839912,1735317046473,-500.0,0.00010758,2]
[346839913,1735317046483,-500.0,0.00010758,2]
[346839914,1735317046493,-464.92872541,0.00010758,2]
[346839915,1735317046502,-500.0,0.00010758,2]
[346839916,1735317046512,-500.0,0.00010758,2]
[346839917,1735317046523,-1002.75,0.00010758,2]
[346839918,1735317046532,-500.0,0.00010758,2]
[346839919,1735317046542,-500.0,0.00010758,2]
[346839920,1735317046551,-500.0,0.00010758,2]
[346839921,1735317046561,-500.0,0.00010758,2]
[346839922,1735317046570,-545.82,0.00010758,2]
[346839923,1735317046580,-500.0,0.00010758,2]
[346839924,1735317046590,-500.0,0.00010758,2]
[346839925,1735317046599,-500.0,0.00010758,2]
[346839926,1735317046608,-500.0,0.00010758,2]
[346839927,1735317046617,-550.11,0.00010758,2]
[346839928,1735317046627,-500.0,0.00010758,2]
[346839929,1735317046636,-500.0,0.00010758,2]
[346839930,1735317046886,-500.0,0.00010758,2]
[346839931,1735317046897,-500.0,0.00010758,2]
[346839932,1735317046906,-658.08,0.00010758,2]
[346839934,1735317046916,-500.0,0.00010758,2]
[346839936,1735317046926,-500.0,0.00010758,2]
[346839937,1735317046935,-500.0,0.00010758,2]
[346839939,1735317046944,-500.0,0.00010758,2]
[346839942,1735317046954,-550.59,0.00010758,2]
[346839943,1735317046963,-500.0,0.00010758,2]
[346839945,1735317046973,-500.0,0.00010758,2]
[346839947,1735317046982,-500.0,0.00010758,2]
[346839949,1735317046991,-500.0,0.00010758,2]
[346839951,1735317047001,-500.0,0.00010758,2]
[346839953,1735317047009,-500.0,0.00010758,2]
[346839955,1735317047019,-732.65,0.00010758,2]
[346839957,1735317047028,-171.49004842,0.00010758,2]
[346839959,1735317047037,-500.0,0.00010758,2]
[346839961,1735317047047,-622.37,0.00010758,2]
[346839963,1735317047056,-453.10521196,0.00010758,2]
[346839965,1735317047065,-500.0,0.00010758,2]
[346839967,1735317047076,-709.82,0.00010758,2]
[346839969,1735317047085,-383.32789188,0.00010758,2]
[346839971,1735317047094,-500.0,0.00010758,2]
[346839973,1735317047103,-500.0,0.00010758,2]
[346839975,1735317047113,-500.0,0.00010758,2]
[346839977,1735317047122,-500.0,0.00010758,2]
[346839979,1735317047131,-500.0,0.00010758,2]
[346839980,1735317047140,-500.0,0.00010758,2]
[346839981,1735317047150,-500.0,0.00010758,2]
[346839982,1735317047159,-500.0,0.00010758,2]
[346839983,1735317047168,-969.0,0.00010758,2]
[346839984,1735317047178,-922.73,0.00010758,2]
[346839985,1735317047188,-500.0,0.00010758,2]
[346839986,1735317047197,-500.0,0.00010758,2]
[346839987,1735317047207,-505.48626186,0.00010758,2]
[346839988,1735317047216,-500.0,0.00010758,2]
[346839989,1735317047226,-1003.85,0.00010758,2]
[346839990,1735317047235,-500.0,0.00010758,2]
[346839991,1735317047244,-500.0,0.00010758,2]
[346839992,1735317047253,-500.0,0.00010758,2]
[346839993,1735317047263,-549.23,0.00010758,2]
[346839994,1735317047272,-690.36,0.00010758,2]
[346839995,1735317047282,-500.0,0.00010758,2]
[346839996,1735317047291,-322.71772481,0.00010758,2]
[346839997,1735317047300,-500.0,0.00010758,2]
[346839998,1735317047310,-500.0,0.00010758,2]
[346839999,1735317047318,-282.06200302,0.00010758,2]
[346840000,1735317047328,-742.85,0.00010758,2]
[346840001,1735317047337,-579.86,0.00010758,2]
[346840002,1735317047346,-500.0,0.00010758,2]
[346840003,1735317047355,-500.0,0.00010758,2]
[346840004,1735317047364,-500.0,0.00010758,2]
[346840005,1735317047373,-500.0,0.00010758,2]
[346840006,1735317047383,-500.0,0.00010758,2]
[346840007,1735317047392,-500.0,0.00010758,2]
[346840008,1735317047401,-602.72998761,0.00010758,2]
[346840009,1735317047411,-829.12,0.00010758,2]
[346840010,1735317047421,-712.62,0.00010758,2]
[346840011,1735317047431,-852.42,0.00010758,2]
[346840012,1735317047440,-550.11,0.00010758,2]
[346840013,1735317047449,-565.79,0.00010758,2]
[346840014,1735317047458,-1087.26,0.00010758,2]
[346840015,1735317047467,-500.0,0.00010758,2]
[346840016,1735317047477,-500.0,0.00010758,2]
[346840017,1735317047486,-500.0,0.00010758,2]
[346840018,1735317047496,-640.16,0.00010758,2]
[346840019,1735317047506,-824.78,0.00010758,2]
[346840020,1735317047516,-500.0,0.00010758,2]
[346840021,1735317047525,-500.0,0.00010758,2]
[346840022,1735317047534,-500.0,0.00010758,2]
[346840023,1735317047543,-500.0,0.00010758,2]
[346840024,1735317047553,-534.23,0.00010758,2]
[346840026,1735317047562,-500.0,0.00010758,2]
[346840028,1735317047571,-500.0,0.00010758,2]
[346840030,1735317047580,-637.22,0.00010758,2]
[346840032,1735317047589,-500.0,0.00010758,2]
[346840033,1735317047598,-500.0,0.00010758,2]
[346840034,1735317047607,-500.0,0.00010758,2]
[346840035,1735317047617,-500.0,0.00010758,2]
[346840036,1735317047626,-500.0,0.00010758,2]
[346840037,1735317047636,-500.0,0.00010758,2]
[346840038,1735317047645,-500.0,0.00010758,2]
[346840039,1735317047655,-500.0,0.00010758,2]
[346840040,1735317047664,-500.0,0.00010758,2]
[346840041,1735317047673,-500.0,0.00010758,2]
[346840042,1735317047682,-500.0,0.00010758,2]
[346840043,1735317047692,-504.92,0.00010758,2]
[346840044,1735317047701,-500.0,0.00010758,2]
[346840045,1735317047710,-500.0,0.00010758,2]
[346840046,1735317047720,-898.71,0.00010758,2]
[346840047,1735317047729,-500.0,0.00010758,2]
[346840048,1735317047738,-500.0,0.00010758,2]
[346840049,1735317047747,-500.0,0.00010758,2]
[346840050,1735317047756,-500.0,0.00010758,2]
[346840051,1735317047767,-648.3,0.00010758,2]
[346840052,1735317047776,-500.0,0.00010758,2]
[346840053,1735317047785,-500.0,0.00010758,2]
[346840054,1735317047794,-500.0,0.00010758,2]
[346840055,1735317047803,-566.26,0.00010758,2]
[346840056,1735317047813,-500.0,0.00010758,2]
[346840057,1735317047822,-503.33114913,0.00010758,2]
[346840058,1735317047831,-500.0,0.00010758,2]
[346840059,1735317047841,-500.0,0.00010758,2]
[346840060,1735317047850,-500.0,0.00010758,2]
[346840061,1735317047859,-500.0,0.00010758,2]
[346840062,1735317047869,-500.0,0.00010758,2]
[346840063,1735317047880,-692.85,0.00010758,2]
[346840064,1735317047891,-500.0,0.00010758,2]
[346840065,1735317047900,-500.0,0.00010758,2]
[346840066,1735317047910,-500.0,0.00010758,2]
[346840067,1735317047919,-691.03,0.00010758,2]
[346840068,1735317047930,-500.0,0.00010758,2]
[346840069,1735317047939,-500.0,0.00010758,2]
[346840070,1735317047948,-500.0,0.00010758,2]
[346840071,1735317047959,-338.81834398,0.00010758,2]
[346840072,1735317047969,-500.0,0.00010758,2]
[346840073,1735317047979,-500.0,0.00010758,2]
[346840074,1735317047988,-500.0,0.00010758,2]
[346840075,1735317047997,-500.0,0.00010758,2]
[346840076,1735317048006,-500.0,0.00010758,2]
[346840077,1735317048018,-512.49369423,0.00010758,2]
[346840078,1735317048027,-500.0,0.00010758,2]
[346840079,1735317048037,-500.0,0.00010758,2]
[346840080,1735317048046,-500.0,0.00010758,2]
[346840081,1735317048056,-500.0,0.00010758,2]
[346840082,1735317048065,-1114.35,0.00010758,2]
[346840083,1735317048074,-411.24758614,0.00010758,2]
[346840084,1735317048085,-500.0,0.00010758,2]
[346840085,1735317048094,-500.0,0.00010758,2]
[346840086,1735317048104,-500.0,0.00010758,2]
[346840087,1735317048115,-500.0,0.00010758,2]
[346840088,1735317048124,-500.0,0.00010758,2]
[346840089,1735317048134,-1120.66,0.00010758,2]
[346840090,1735317048143,-500.0,0.00010758,2]
[346840091,1735317048153,-245.13,0.00010759,2]
[346840092,1735317048163,-245.21,0.00010759,2]
[346840093,1735317048173,-1657.716936,0.00010759,2]
[346840094,1735317048182,-1657.716936,0.00010759,2]
[346840095,1735317048192,-1498.93,0.00010759,2]
[346840096,1735317048202,-1692.17,0.00010759,2]
[346840097,1735317048211,-500.0,0.00010759,2]
[346840098,1735317048221,-10559.64,0.00010759,2]